fUST/lending_fUST_20251026
["ID","MTS","AMOUNT","RATE_DAILY","PERIOD"]
[392378786,1761411293183,583.51,0.00016964,2]
[392378787,1761411304098,300.0,0.00016964,2]
[392378788,1761411304531,300.0,0.00016964,2]
[392378789,1761411305488,1200.0,0.00016964,2]
[392378790,1761411306627,500.0,0.00016964,2]
[392378791,1761411307202,300.0,0.00016964,2]
[392378792,1761411310954,487.45004144,0.00016964,2]
[392378793,1761411311158,213.96859442,0.00016965,2]
[392378794,1761411314451,122.55492465,0.00016964,2]
[392378795,1761411314474,398.28507535,0.00016964,2]
[392378796,1761411315692,500.0,0.00016964,2]
[392378797,1761411319669,648.15,0.00016964,2]
[392378798,1761411325742,502.09673124,0.00016964,2]
[392378799,1761411330405,500.0,0.00016964,2]
[392378800,1761411332286,500.0,0.00016964,2]
[392378801,1761411339040,500.0,0.00016964,2]
[392378802,1761411339068,500.0,0.00016964,2]
[392378803,1761411341657,500.0,0.00016964,2]
[392378804,1761411344234,155.21825853,0.000169,2]
[392378805,1761411347615,607.32,0.00016964,2]
[392378806,1761411349481,500.0,0.00016964,2]
[392378807,1761411349851,196.0,0.00016,2]
[392378808,1761411353186,500.0,0.00016964,2]
[392378809,1761411359050,500.0,0.00016964,2]
[392378810,1761411361162,500.0,0.00016964,2]
[392378811,1761411363291,555.76554497,0.00016964,2]
[392378812,1761411364076,300.0,0.00016964,2]
[392378813,1761411369481,500.0,0.00016964,2]
[392378814,1761411376661,-501.85216839,0.00016964,2]
[392378815,1761411376816,-792.05,0.00016964,2]
[392378816,1761411377353,-9006.57294182,0.00016965,2]
[392378817,1761411377382,-10000.01,0.00016965,2]
[392378818,1761411377539,-10000.01,0.00016965,2]
[392378819,1761411377754,-10000.01,0.00016965,2]
[392378820,1761411377905,-10000.01,0.00016965,2]
[392378821,1761411378041,-10000.01,0.00016965,2]
[392378822,1761411379842,-10000.01,0.00016965,2]
[392378823,1761411379855,-3269.95743993,0.00016965,2]
[392378824,1761411379863,-2216.81320065,0.0001699,2]
[392378825,1761411379872,-1705.10571497,0.00017012,2]
[392378826,1761411379881,-196.0,0.0001705,2]
[392378827,1761411379890,-1705.10571497,0.00017062,2]
[392378828,1761411379899,-907.02792948,0.00017062,2]
[392378829,1761411379923,-10000.01,0.00017062,2]
[392378830,1761411380059,-10000.01,0.00017062,2]
[392378831,1761411385773,-10000.01,0.00017062,2]
[392378832,1761411386044,-10000.01,0.00017062,2]
[392378833,1761411386165,-907.07792948,0.00017062,2]
[392378834,1761411386190,-8185.85414104,0.00017062,2]
[392378835,1761411386297,-500.0,0.00017062,2]
[392378836,1761411386327,-759.53,0.00017062,2]
[392378837,1761411386356,-500.0,0.00017062,2]
[392378838,1761411386388,-1310.66,0.00017062,2]
[392378839,1761411386417,-500.0,0.00017062,2]
[392378840,1761411386447,-1125.3,0.00017062,2]
[392378841,1761411386560,-742.05,0.00017062,2]
[392378842,1761411386591,-1180.33,0.00017062,2]
[392378843,1761411386622,-2179.43,0.00017062,2]
[392378844,1761411386652,-811.7,0.00017062,2]
[392378845,1761411386830,-782.02,0.00016964,2]
[392378846,1761411389058,-323.76,0.00016964,2]
[392378847,1761411389085,-500.0,0.00016964,2]
[392378848,1761411389112,-172.99,0.00017062,2]
[392378849,1761411389141,-600.09,0.00017062,2]
[392378850,1761411389172,-949.14,0.00017062,2]
[392378851,1761411389200,-1895.62,0.00017062,2]
[392378852,1761411389250,-3083.87,0.00017062,2]
[392378853,1761411389279,-1829.8,0.00017062,2]
[392378854,1761411389337,-172.67,0.00017062,2]
[392378855,1761411389365,-1516.38,0.00017062,2]
[392378856,1761411389392,-1136.75,0.00017062,2]
[392378857,1761411389418,-500.0,0.00017062,2]
[392378858,1761411389446,-351.02,0.00017062,2]
[392378859,1761411389478,-500.0,0.00017062,2]
[392378860,1761411389509,-500.0,0.00017062,2]
[392378861,1761411389537,-146.37,0.00017062,2]
[392378862,1761411389632,-353.63,0.00017062,2]
[392378863,1761411389659,-993.2,0.00017062,2]
[392378864,1761411389687,-500.0,0.00017062,2]
[392378865,1761411389969,-2328.57,0.00017062,2]
[392378866,1761411390165,-1943.85,0.00017062,2]
[392378867,1761411390197,-955.72,0.00017062,2]
[392378868,1761411390226,-646.1,0.00017062,2]
[392378869,1761411390254,-500.0,0.00017062,2]
[392378870,1761411390284,-711.81,0.00017062,2]
[392378871,1761411390438,-500.0,0.00017062,2]
[392378872,1761411390469,-500.0,0.00017062,2]
[392378873,1761411390499,-1569.41,0.00017062,2]
[392378874,1761411390526,-500.0,0.00017062,2]
[392378875,1761411390554,-500.0,0.00017062,2]
[392378876,1761411390580,-943.93,0.00017062,2]
[392378877,1761411390609,-222.43,0.00017062,2]
[392378878,1761411391139,-76.74,0.00017062,2]
[392378879,1761411391152,-451.73,0.00017062,2]
[392378880,1761411391162,-1039.0,0.00017062,2]
[392378881,1761411391171,-78.68,0.00017062,2]
[392378882,1761411391188,-500.0,0.00017062,2]
[392378883,1761411391207,-88.55,0.00017062,2]
[392378884,1761411391216,-411.45,0.00017062,2]
[392378885,1761411391234,-943.93,0.00017062,2]
[392378886,1761411391248,-19.84,0.00017062,2]
[392378887,1761411391257,-731.06,0.00017062,2]
[392378888,1761411394766,-300.0,0.00017,2]
[392378889,1761411394795,-1661.77,0.00017062,2]
[392378890,1761411394822,-500.0,0.00017062,2]
[392378891,1761411394849,-500.0,0.00017062,2]
[392378892,1761411394876,-505.45,0.00017062,2]
[392378893,1761411394905,-500.0,0.00017063,2]
[392378894,1761411394934,-500.0,0.00017063,2]
[392378895,1761411394962,-500.0,0.00017063,2]
[392378896,1761411395075,-500.0,0.00017063,2]
[392378897,1761411395103,-500.0,0.00017063,2]
[392378898,1761411395134,-500.0,0.00017063,2]
[392378899,1761411395161,-500.0,0.00017063,2]
[392378900,1761411395191,-500.0,0.00017063,2]
[392378901,1761411395218,-500.0,0.00017063,2]
[392378902,1761411395246,-500.0,0.00017063,2]
[392378903,1761411395272,-507.92667981,0.00017063,2]
[392378904,1761411395303,-500.0,0.00017063,2]
[392378905,1761411395329,-484.15664038,0.00017063,2]
[392378906,1761411395645,-15.84335962,0.00017063,2]
[392378907,1761411395674,-531.71,0.00017063,2]
[392378908,1761411395703,-500.00570231,0.00017063,2]
[392378909,1761411395732,-500.0,0.00017063,2]
[392378910,1761411395761,-500.0,0.00017063,2]
[392378911,1761411395792,-507.63839291,0.00017063,2]
[392378912,1761411395822,-500.0,0.00017063,2]
[392378913,1761411395851,-500.0,0.00017063,2]
[392378914,1761411395880,-1063.04509032,0.00017063,2]
[392378915,1761411395998,-500.0,0.00017,2]
[392378916,1761411396026,-763.52490968,0.00017063,2]
[392378917,1761411396053,-506.44094046,0.00017063,2]
[392378918,1761411396082,-500.0,0.00017063,2]
[392378919,1761411396111,-506.43498711,0.00017063,2]
[392378920,1761411396140,-520.56,0.00017063,2]
[392378921,1761411396168,-500.0,0.00017063,2]
[392378922,1761411396196,-500.0,0.00017063,2]
[392378923,1761411396224,-500.0,0.00017063,2]
[392378924,1761411396369,-500.0,0.00017063,2]
[392378925,1761411396398,-500.0,0.00017063,2]
[392378926,1761411396427,-500.0,0.00017063,2]
[392378927,1761411396454,-500.0,0.00017063,2]
[392378928,1761411396487,-500.0,0.00017063,2]
[392378929,1761411396517,-500.0,0.00017063,2]
[392378930,1761411396547,-586.79509312,0.00017063,2]
[392378931,1761411396575,-506.87293823,0.00017063,2]
[392378932,1761411396604,-500.0,0.00017063,2]
[392378933,1761411396632,-312.6739373,0.00017063,2]
[392378934,1761411396706,-187.3260627,0.00017063,2]
[392378935,1761411396736,-500.0,0.00017063,2]
[392378936,1761411396766,-500.0,0.00017063,2]
[392378937,1761411396794,-500.0,0.00017063,2]
[392378938,1761411396823,-500.0,0.00017063,2]
[392378939,1761411396851,-500.0,0.00017063,2]
[392378940,1761411396879,-500.0,0.00017063,2]
[392378941,1761411396907,-500.0,0.00017063,2]
[392378942,1761411396934,-500.0,0.00017063,2]
[392378943,1761411396960,-500.0,0.00017063,2]
[392378944,1761411396987,-123.0378746,0.00017063,2]
[392378945,1761411397963,-342.74772113,0.00017063,2]
[392378946,1761411397976,-36.53440427,0.00017063,2]
[392378947,1761411397985,-463.46559573,0.00017063,2]
[392378948,1761411397999,-36.53440427,0.00017063,2]
[392378949,1761411398008,-463.46559573,0.00017063,2]
[392378950,1761411398040,-36.53440427,0.00017063,2]
[392378951,1761411398049,-465.78559573,0.00017063,2]
[392378952,1761411406944,-300.0,0.0001683,2]
[392378953,1761411406972,-500.0,0.00016964,2]
[392378954,1761411407000,-465.69051499,0.00016964,2]
[392378955,1761411407030,-500.0,0.00016964,2]
[392378956,1761411407057,-500.0,0.00016964,2]
[392378957,1761411409224,1256.05,0.00016964,2]
[392378958,1761411411996,500.0,0.00016964,2]
[392378959,1761411414857,3712.57897002,0.00016964,2]
[392378960,1761411414879,1287.42102998,0.00016964,2]
[392378961,1761411414951,500.0,0.00016964,2]
[392378962,1761411414986,500.0,0.00016964,2]
[392378963,1761411415282,500.0,0.00016964,2]
[392378964,1761411415606,500.0,0.00016964,2]
[392378965,1761411415936,500.0,0.00016964,2]
[392378966,1761411415996,1078.41,0.00016964,2]
[392378967,1761411416274,500.0,0.00016964,2]
[392378968,1761411416606,222.11126839,0.00016964,2]
[392378969,1761411417594,500.0,0.00016964,2]
[392378970,1761411422051,-8443.44873161,0.0001699,2]
[392378971,1761411422152,-4512.05759013,0.0001699,2]
[392378972,1761411422944,500.0,0.00016964,2]
[392378973,1761411423192,475.89481974,0.0001699,2]
[392378974,1761411423214,4524.10518026,0.0001699,2]
[392378975,1761411424895,300.0,0.00016989,2]
[392378976,1761411425368,500.0,0.00016964,2]
[392378977,1761411425746,711.13,0.00016964,2]
[392378978,1761411428839,1131.15,0.00016964,2]
[392378979,1761411429329,500.0,0.00016964,2]
[392378980,1761411430991,2333.62481974,0.0001699,2]
[392378981,1761411431015,2204.30922739,0.0001699,2]
[392378982,1761411438271,2088.62,0.00016964,2]
[392378983,1761411439064,7911.39,0.0001689,2]
[392378984,1761411439088,10000.01,0.0001689,2]
[392378985,1761411439111,10000.01,0.0001689,2]
[392378986,1761411439137,10000.01,0.0001689,2]
[392378987,1761411439160,10000.01,0.0001689,2]
[392378988,1761411439181,10000.01,0.0001689,2]
[392378989,1761411439203,10000.01,0.0001689,2]
[392378990,1761411439225,10000.01,0.0001689,2]
[392378991,1761411439248,10000.01,0.0001689,2]
[392378992,1761411439273,10000.01,0.0001689,2]
[392378993,1761411439297,10000.01,0.0001689,2]
[392378994,1761411443743,-196.0,0.0001689,2]
[392378995,1761411445887,-202.58352448,0.0001689,2]
[392378996,1761411447323,-169.2409197,0.00016721,2]
[392378997,1761411464165,-202.7919936,0.00016554,2]
[392378998,1761411464206,-196.00086286,0.0001672,2]
[392378999,1761411466124,-335.52641033,0.0001672,2]
[392379000,1761411469738,-196.0,0.0001672,2]
[392379001,1761411470313,196.0,0.00016,2]
[392379002,1761411470648,196.0,0.00016041,2]
[392379003,1761411471039,196.0,0.00016082,2]
[392379004,1761411471556,196.0,0.00016124,2]
[392379005,1761411471711,196.0,0.00016165,2]
[392379006,1761411471958,196.0,0.00016206,2]
[392379007,1761411472255,196.0,0.00016247,2]
[392379008,1761411472557,196.0,0.00016288,2]
[392379009,1761411472647,-222.7590803,0.0001672,2]
[392379010,1761411472846,196.0,0.00016329,2]
[392379011,1761411473143,196.0,0.00016371,2]
[392379012,1761411473451,196.0,0.00016412,2]
[392379013,1761411473729,196.0,0.00016453,2]
[392379014,1761411474020,196.0,0.00016494,2]
[392379015,1761411474334,196.0,0.00016535,2]
[392379016,1761411477098,-196.0,0.00016576,2]
[392379017,1761411477122,-53.2192281,0.00016618,2]
[392379018,1761411478539,-142.7807719,0.00016618,2]
[392379019,1761411478567,-121.13028078,0.00016659,2]
[392379020,1761411481987,-74.86971922,0.00016659,2]
[392379021,1761411482009,-121.13028078,0.000167,2]
[392379022,1761411499615,513.13028078,0.000167,2]
[392379023,1761411514207,300.0,0.000167,2]
[392379024,1761411526208,300.0,0.000167,2]
[392379025,1761411538005,300.0,0.000167,2]
[392379026,1761411550026,300.0,0.000167,2]
[392379027,1761411568427,300.0,0.000167,2]
[392379028,1761411571045,300.0,0.000167,2]
[392379029,1761411582547,300.0,0.000167,2]
[392379030,1761411583306,300.0,0.000167,2]
[392379031,1761411591264,763.82444418,0.000166,2]
[392379032,1761411594056,300.0,0.000167,2]
[392379033,1761411595236,300.0,0.000167,2]
[392379034,1761411599539,196.0,0.00016,2]
[392379035,1761411599865,196.0,0.0001642,2]
[392379036,1761411600143,-300.0,0.00016719,2]
[392379037,1761411602072,300.0,0.00016719,2]
[392379038,1761411603904,1200.0,0.00016719,2]
[392379039,1761411603946,300.0,0.00016719,2]
[392379040,1761411604119,300.0,0.00016719,2]
[392379041,1761411604412,300.0,0.00016719,2]
[392379042,1761411605296,300.0,0.00016719,2]
[392379043,1761411605356,300.0,0.000167,2]
[392379044,1761411606677,300.0,0.000167,2]
[392379045,1761411615130,-249.71364651,0.0001672,2]
[392379046,1761411615161,-181.58849173,0.0001672,2]
[392379047,1761411615192,-500.0,0.0001672,2]
[392379048,1761411615226,-500.0,0.0001672,2]
[392379049,1761411615256,-500.0,0.0001672,2]
[392379050,1761411615287,-500.0,0.0001672,2]
[392379051,1761411615317,-500.0,0.0001672,2]
[392379052,1761411615348,-500.0,0.0001672,2]
[392379053,1761411615383,-317.38832046,0.0001672,2]
[392379054,1761411615414,-296.44958622,0.0001672,2]
[392379055,1761411615444,-500.0,0.0001672,2]
[392379056,1761411615476,-409.72991016,0.0001672,2]
[392379057,1761411615665,-90.27008984,0.0001672,2]
[392379058,1761411615699,-500.0,0.0001672,2]
[392379059,1761411615731,-500.0,0.0001672,2]
[392379060,1761411615760,-598.21951029,0.0001672,2]
[392379061,1761411615793,-500.0,0.0001672,2]
[392379062,1761411615823,-451.24164842,0.0001672,2]
[392379063,1761411626080,2804.4911925,0.00016003,2]
[392379064,1761411636266,-5000.0,0.0001672,2]
[392379065,1761411636849,-3410.6120473,0.00016721,2]
[392379066,1761411637168,-10000.01,0.00015876,2]
[392379067,1761411637182,-10000.01,0.00015876,2]
[392379068,1761411637210,-415.9279827,0.00015876,2]
[392379069,1761411637233,-9168.1540346,0.00015876,2]
[392379070,1761411637343,-10000.01,0.00016721,2]
[392379071,1761411637468,-10000.01,0.00016721,2]
[392379072,1761411639312,-10000.01,0.00016721,2]
[392379073,1761411639449,-3757.13232991,0.00016721,2]
[392379074,1761411642486,1421.28109932,0.00016554,2]
[392379075,1761411648378,-4585.28855829,0.00016806,2]
[392379076,1761411657686,829.43288342,0.00016806,2]
[392379077,1761411657710,4170.56711658,0.00016806,2]
[392379078,1761411660767,-196.0,0.0001684,2]
[392379079,1761411665587,2211.26148444,0.0001684,2]
[392379080,1761411673860,-217.37243874,0.00016846,2]
[392379081,1761411675347,-281.98690413,0.00016846,2]
[392379082,1761411676870,-4085.92921542,0.00016846,2]
[392379083,1761411681326,1828.15156916,0.00016846,2]
[392379084,1761411681348,3171.84843084,0.00016846,2]
[392379085,1761411689120,5000.0,0.00016846,2]
[392379086,1761411697521,1440.1419817,0.00016846,2]
[392379087,1761411705905,5000.0,0.00016883,2]
[392379088,1761411711455,196.0,0.00016,2]
[392379089,1761411711710,-565.06904541,0.00016883,2]
[392379090,1761411711742,-290.79819687,0.00016883,2]
[392379091,1761411711776,-300.0,0.00016884,2]
[392379092,1761411711825,196.0,0.00016055,2]
[392379093,1761411712076,196.0,0.00016111,2]
[392379094,1761411712349,196.0,0.00016166,2]
[392379095,1761411712670,196.0,0.00016221,2]
[392379096,1761411712968,196.0,0.00016276,2]
[392379097,1761411713261,196.0,0.00016332,2]
[392379098,1761411713570,196.0,0.00016387,2]
[392379099,1761411713860,196.0,0.00016442,2]
[392379100,1761411714446,196.0,0.00016497,2]
[392379101,1761411714520,196.0,0.00016553,2]
[392379102,1761411714574,741.65844998,0.00016884,2]
[392379103,1761411714784,196.0,0.00016608,2]
[392379104,1761411715080,196.0,0.00016663,2]
[392379105,1761411715390,196.0,0.00016718,2]
[392379106,1761411715697,196.0,0.00016774,2]
[392379107,1761411715995,196.0,0.00016829,2]
[392379108,1761411723932,709.60954566,0.00016884,2]
[392379109,1761411732915,5000.0,0.00016884,2]
[392379110,1761411748920,1244.06909132,0.00016884,2]
[392379111,1761411756700,3755.94090868,0.00016884,2]
[392379112,1761411756723,1244.05909132,0.00016884,2]
[392379113,1761411761658,413.1565635,0.00015911,2]
[392379114,1761411772577,1035.95519442,0.00016884,2]
[392379115,1761411780687,5000.0,0.00016884,2]
[392379116,1761411804808,2306.83915076,0.00016884,2]
[392379117,1761411804830,2693.16084924,0.00016884,2]
[392379118,1761411812709,509.42759824,0.00016884,2]
[392379119,1761411820371,-196.0,0.00016884,2]
[392379120,1761411820405,-300.0,0.00016888,2]
[392379121,1761411821468,2751.17313499,0.00016839,2]
[392379122,1761411823427,2751.17313497,0.0001687,2]
[392379123,1761411828670,3505.66373004,0.00016888,2]
[392379124,1761411828700,1494.33626996,0.00016888,2]
[392379125,1761411835394,-1200.0,0.00016889,2]
[392379126,1761411836470,2047.08006558,0.00016888,2]
[392379127,1761411836729,196.0,0.00016,2]
[392379128,1761411837018,196.0,0.00016175,2]
[392379129,1761411837304,196.0,0.0001635,2]
[392379130,1761411837605,196.0,0.00016525,2]
[392379131,1761411837791,163.07995858,0.00016789,2]
[392379132,1761411837888,196.0,0.000167,2]
[392379133,1761411838224,196.0,0.00016875,2]
[392379134,1761411844368,300.0,0.00016889,2]
[392379135,1761411850519,-203.55873781,0.00016889,2]
[392379136,1761411850549,-395.54833178,0.00016889,2]
[392379137,1761411850578,-201.93203561,0.00016889,2]
[392379138,1761411850611,-216.8046276,0.00016889,2]
[392379139,1761411853134,5000.0,0.00016889,2]
[392379140,1761411860886,446.0,0.00016889,2]
[392379141,1761411866993,-7503.0126973,0.0001689,2]
[392379142,1761411867031,-10000.01,0.0001689,2]
[392379143,1761411867270,-10000.01,0.0001689,2]
[392379144,1761411871752,-10000.01,0.0001689,2]
[392379145,1761411872002,-10000.01,0.0001689,2]
[392379146,1761411872143,-10000.01,0.0001689,2]
[392379147,1761411872294,-10000.01,0.0001689,2]
[392379148,1761411872404,-10000.01,0.0001689,2]
[392379149,1761411872546,-10000.01,0.0001689,2]
[392379150,1761411872681,-10000.01,0.0001689,2]
[392379151,1761411874668,-10000.01,0.0001689,2]
[392379152,1761411874743,-10000.01,0.0001689,2]
[392379153,1761411874877,-10000.01,0.0001689,2]
[392379154,1761411877756,-10000.01,0.00016721,2]
[392379155,1761411877972,-10000.01,0.00016721,2]
[392379156,1761411878098,-10000.01,0.00016721,2]
[392379157,1761411878211,-4116.48317568,0.00016721,2]
[392379158,1761411878246,-1767.04364864,0.0001689,2]
[392379159,1761411878342,-10000.01,0.0001689,2]
[392379160,1761411878466,-10000.01,0.0001689,2]
[392379161,1761411878606,-10000.01,0.0001689,2]
[392379162,1761411880665,-10000.01,0.0001689,2]
[392379163,1761411880773,-10000.01,0.0001689,2]
[392379164,1761411913762,-2809.4503923,0.00016553,2]
[392379165,1761411924668,4381.1092154,0.00016553,2]
[392379166,1761411924690,618.8907846,0.00016553,2]
[392379167,1761411928827,-2809.4503923,0.0001672,2]
[392379168,1761411932425,4381.1092154,0.0001672,2]
[392379169,1761411932446,618.8907846,0.0001672,2]
[392379170,1761411941000,1286.81715508,0.00016783,2]
[392379171,1761411948797,5000.0,0.00016783,2]
[392379172,1761411952562,196.0,0.00016,2]
[392379173,1761411952853,196.0,0.00016034,2]
[392379174,1761411953148,196.0,0.00016069,2]
[392379175,1761411953438,196.0,0.00016103,2]
[392379176,1761411953721,196.0,0.00016138,2]
[392379177,1761411954058,196.0,0.00016172,2]
[392379178,1761411954344,196.0,0.00016207,2]
[392379179,1761411954642,196.0,0.00016241,2]
[392379180,1761411954931,196.0,0.00016275,2]
[392379181,1761411955270,196.0,0.0001631,2]
[392379182,1761411955499,196.0,0.00016344,2]
[392379183,1761411955788,196.0,0.00016379,2]
[392379184,1761411956089,196.0,0.00016413,2]
[392379185,1761411956395,196.0,0.00016448,2]
[392379186,1761411956691,196.0,0.00016482,2]
[392379187,1761411957001,196.0,0.00016516,2]
[392379188,1761411957535,196.0,0.00016551,2]
[392379189,1761411957593,196.0,0.00016585,2]
[392379190,1761411957908,185.19284492,0.0001662,2]
[392379191,1761411957931,10.80715508,0.0001662,2]
[392379192,1761411958209,196.0,0.00016654,2]
[392379193,1761411958511,196.0,0.00016689,2]
[392379194,1761411958823,196.0,0.00016723,2]
[392379195,1761411959136,196.0,0.00016757,2]
[392379196,1761411971868,5000.0,0.00016783,2]
[392379197,1761411994917,4205.20284492,0.00016783,2]
[392379198,1761411994942,794.79715508,0.00016783,2]
[392379199,1761412017916,1384.65428466,0.00016783,2]
[392379200,1761412081521,196.0,0.00016,2]
[392379201,1761412082402,196.0,0.00016263,2]
[392379202,1761412082643,196.0,0.00016525,2]
[392379203,1761412083708,207.11,0.00015225,2]
[392379204,1761412084007,207.11,0.00015225,2]
[392379205,1761412109543,-182.89,0.00016783,2]
[392379206,1761412124577,-22.79315899,0.00016783,2]
[392379207,1761412124600,-160.09684101,0.00016786,2]
[392379208,1761412126424,-177.08789888,0.00016786,2]
[392379209,1761412131113,-1576.60814843,0.00016786,2]
[392379210,1761412146155,-196.0,0.00016788,2]
[392379211,1761412161355,-300.0,0.000168,2]
[392379212,1761412169832,300.0,0.000168,2]
[392379213,1761412176527,-1650.70388099,0.00016864,2]
[392379214,1761412181467,300.0,0.000168,2]
[392379215,1761412183764,-201.80210112,0.00016871,2]
[392379216,1761412191513,-1448.90177986,0.00016871,2]
[392379217,1761412191903,196.0,0.00016,2]
[392379218,1761412192235,196.0,0.00016055,2]
[392379219,1761412192513,196.0,0.00016111,2]
[392379220,1761412192843,196.0,0.00016166,2]
[392379221,1761412193128,196.0,0.00016221,2]
[392379222,1761412193176,300.0,0.000168,2]
[392379223,1761412193413,196.0,0.00016276,2]
[392379224,1761412193700,196.0,0.00016332,2]
[392379225,1761412194028,196.0,0.00016387,2]
[392379226,1761412194366,196.0,0.00016442,2]
[392379227,1761412194653,196.0,0.00016497,2]
[392379228,1761412194946,196.0,0.00016553,2]
[392379229,1761412195241,196.0,0.00016608,2]
[392379230,1761412195524,196.0,0.00016663,2]
[392379231,1761412196002,196.0,0.00016718,2]
[392379232,1761412196131,196.0,0.00016774,2]
[392379233,1761412196600,196.0,0.00016829,2]
[392379234,1761412206597,-1650.70388098,0.00016877,2]
[392379235,1761412214699,240.71677453,0.000168,2]
[392379236,1761412218071,999.0,0.00015889,2]
[392379237,1761412221608,-1650.70388098,0.00016884,2]
[392379245,1761412231753,-196.0,0.00016884,2]
[392379246,1761412231762,-300.0,0.00016886,2]
[392379247,1761412231772,-300.0,0.00016886,2]
[392379248,1761412231782,-38.646977,0.00016886,2]
[392379249,1761412231795,-1161.353023,0.00016886,2]
[392379250,1761412231805,-269.30545916,0.00016887,2]
[392379254,1761412234177,3641.92617274,0.00016884,2]
[392379255,1761412236692,-389.99479004,0.00016887,2]
[392379256,1761412236719,-158.46728223,0.00016887,2]
[392379257,1761412236745,-500.0,0.00016887,2]
[392379258,1761412236771,-426.35655283,0.00016887,2]
[392379259,1761412236798,-500.0,0.00016887,2]
[392379260,1761412236827,-447.3732307,0.00016887,2]
[392379261,1761412236854,-500.0,0.00016887,2]
[392379262,1761412236882,-500.0,0.00016887,2]
[392379270,1761412237681,-695.81,0.00016887,2]
[392379280,1761412239939,-234.88454084,0.00016887,2]
[392379281,1761412239948,-300.0,0.00016887,2]
[392379282,1761412239958,-300.0,0.00016887,2]
[392379283,1761412239968,-300.0,0.00016887,2]
[392379284,1761412239976,-2569.62783649,0.00016888,2]
[392379285,1761412239987,-9811.30506897,0.00016888,2]
[392379286,1761412240221,-3e-08,0.00016888,2]
[392379316,1761412242765,-322.36312694,0.00016888,2]
[392379318,1761412242776,-655.1525956,0.00016888,2]
[392379326,1761412246004,-34075.55335697,0.00016888,2]
[392379327,1761412246014,-506.30822587,0.00016888,2]
[392379328,1761412246024,-218.359035,0.00016888,2]
[392379329,1761412246037,-1650.70388098,0.0001689,2]
[392379330,1761412246048,-82419.70012958,0.0001689,2]
[392379331,1761412246057,-196.0,0.00016939,2]
[392379332,1761412246065,-213.96859442,0.00016954,2]
[392379333,1761412246076,-155.0,0.00016963,2]
[392379334,1761412246085,-500.0,0.00016964,2]
[392379335,1761412246094,-1334.53,0.00016964,2]
[392379336,1761412246105,-500.0,0.00016964,2]
[392379337,1761412246117,-500.0,0.00016964,2]
[392379338,1761412246127,-509.61043934,0.00016964,2]
[392379339,1761412246138,-500.0,0.00016964,2]
[392379340,1761412246147,-500.0,0.00016964,2]
[392379341,1761412246157,-500.0,0.00016964,2]
[392379342,1761412246167,-556.8,0.00016964,2]
[392379343,1761412246302,-490.14799825,0.00016964,2]
[392379344,1761412246327,-500.0,0.00016964,2]
[392379345,1761412246336,-500.0,0.00016964,2]
[392379346,1761412246346,-1019.32,0.00016964,2]
[392379347,1761412246355,-500.0,0.00016964,2]
[392379348,1761412246366,-500.0,0.00016964,2]